bitfinex/quotes_SOLUSD_20240808
["timestamp","ask_amount","ask_price","bid_price","bid_amount"]
[1723116507667,15.4299,154.62,154.53,48.15]
[1723116508064,15.4299,154.62,154.55,28.15]
[1723116508886,15.4299,154.62,154.53,48.15]
[1723116509064,45.0,154.61,154.53,48.15]
[1723116509266,45.0,154.61,154.53,28.15]
[1723116509564,45.0,154.61,154.51,28.15]
[1723116509565,6.7447,154.6,154.51,28.15]
[1723116509769,45.0,154.59,154.51,28.15]
[1723116510165,6.5747,154.6,154.51,28.15]
[1723116510781,6.5747,154.6,154.53,28.15]
[1723116510979,6.5747,154.6,154.54,1.20248483]
[1723116511186,6.5747,154.6,154.55,1.20240702]
[1723116511387,6.5747,154.6,154.53,28.15]
[1723116513070,6.5747,154.6,154.55,28.15]
[1723116513406,6.5747,154.6,154.56,1.20194022]
[1723116513770,15.4299,154.62,154.56,1.20194022]
[1723116514091,15.4299,154.62,154.57,28.15]
[1723116514384,15.4299,154.62,154.58,1.20676864]
[1723116514963,15.4299,154.62,154.57,28.15]
[1723116515884,15.4299,154.62,154.55,28.15]
[1723116518092,15.4299,154.62,154.57,28.15]
[1723116518477,6.2918,154.64,154.57,28.15]
[1723116520280,6.2918,154.64,154.61,28.15]
[1723116520684,16.344,154.66,154.61,28.15]
[1723116520996,16.344,154.66,154.62,1.29324606]
[1723116521303,16.344,154.66,154.61,28.15]
[1723116523488,16.344,154.66,154.59,28.15]
[1723116523891,45.0,154.65,154.59,28.15]
[1723116525694,16.344,154.66,154.59,28.15]
[1723116526825,16.344,154.66,154.59,38.44905503]
[1723116528785,16.344,154.66,154.6,1.29298258]
[1723116529316,16.344,154.66,154.59,38.44905503]
[1723116529802,16.344,154.66,154.63,19.29]
[1723116535118,16.344,154.66,154.64,19.29]
[1723116536597,16.344,154.66,154.63,19.29]
[1723116537911,16.344,154.66,154.59,10.29905503]
[1723116538099,16.344,154.66,154.62,19.29]
[1723116538419,16.344,154.66,154.63,19.29]
[1723116539601,16.344,154.66,154.59,10.29905503]
[1723116539801,16.344,154.66,154.63,19.29]
[1723116541038,16.344,154.66,154.59,10.29905503]
[1723116541314,16.344,154.66,154.62,19.29]
[1723116541717,16.344,154.66,154.63,19.29]
[1723116542817,16.344,154.66,154.64,19.29]
[1723116543400,6.2106,154.68,154.64,19.29]
[1723116543814,16.5603,154.7,154.66,19.29]
[1723116544012,16.5603,154.7,154.68,19.29]
[1723116544225,6.0362,154.73,154.68,19.29]
[1723116544911,25.3262,154.73,154.68,19.29]
[1723116545219,6.0362,154.73,154.68,19.29]
[1723116545626,6.0362,154.73,154.69,19.29]
[1723116546120,6.0362,154.73,154.68,19.29]
[1723116546420,6.0362,154.73,154.64,19.29]
[1723116546421,6.0362,154.73,154.71,19.29]
[1723116546617,1.0,154.75,154.72,19.29]
[1723116546822,1.0,154.75,154.74,19.29]
[1723116547124,1.0,154.75,154.73,19.29]
[1723116547502,1.0,154.75,154.72,19.29]
[1723116548005,1.0,154.75,154.68,15.0494]
[1723116548225,1.0,154.75,154.71,19.29]
[1723116548409,1.0,154.75,154.72,19.29]
[1723116548717,1.0,154.75,154.71,19.29]
[1723116552306,1.0,154.75,154.66,9.72849948]
[1723116552513,1.0,154.75,154.7,19.29]
[1723116552710,19.29,154.74,154.66,9.72849948]
[1723116552907,19.29,154.73,154.67,19.29]
[1723116553319,19.29,154.74,154.67,19.29]
[1723116553647,42.196,154.73,154.67,19.29]
[1723116554122,19.29,154.72,154.66,19.29]
[1723116555029,42.196,154.73,154.67,19.29]
[1723116555621,19.29,154.72,154.62,6.361]
[1723116555825,19.29,154.72,154.66,19.29]
[1723116556315,29.3691,154.73,154.61,11.96543691]
[1723116556515,19.29,154.68,154.62,19.29]
[1723116557121,19.29,154.7,154.64,19.29]
[1723116557327,45.0,154.69,154.64,19.29]
[1723116559733,64.29,154.69,154.64,19.29]
[1723116560116,64.29,154.69,154.63,19.29]
[1723116560835,41.4626,154.68,154.58,8.75557023]
[1723116561035,64.63,154.67,154.61,19.29]
[1723116561226,45.34,154.67,154.61,19.29]
[1723116561422,45.0,154.67,154.62,19.29]
[1723116562032,64.29,154.67,154.56,16.5029]
[1723116562330,64.29,154.67,154.61,19.29]
[1723116562555,45.0,154.67,154.62,19.29]
[1723116563758,19.29,154.66,154.56,93.6629]
[1723116563930,19.29,154.66,154.6,19.29]
[1723116565451,64.29,154.67,154.61,19.29]
[1723116569663,64.29,154.67,154.57,1.29337334]
[1723116569664,45.0,154.67,154.62,19.29]
[1723116572540,64.29,154.67,154.62,19.29]
[1723116572945,45.0,154.67,154.62,19.29]
[1723116573450,64.29,154.67,154.62,19.29]
[1723116574082,19.29,154.66,154.61,19.29]
[1723116574398,19.46,154.65,154.59,19.29]
[1723116574546,64.29,154.64,154.58,19.29]
[1723116574851,19.63,154.65,154.6,19.29]
[1723116575059,45.0,154.67,154.6,19.29]
[1723116575060,45.0,154.64,154.6,19.29]
[1723116575243,64.29,154.67,154.61,19.29]
[1723116575442,19.29,154.66,154.61,19.29]
[1723116577590,64.29,154.67,154.61,19.29]
[1723116579791,19.29,154.66,154.61,19.29]
[1723116579977,19.29,154.66,154.56,93.6629]
[1723116580162,19.29,154.66,154.6,19.29]
[1723116581287,45.0,154.65,154.6,19.29]
[1723116582906,45.0,154.65,154.56,93.6629]
[1723116583193,19.29,154.64,154.58,19.29]
[1723116583365,45.0,154.63,154.58,19.29]
[1723116583997,45.0,154.63,154.52,23.8150482]
[1723116583998,25.7566,154.61,154.52,23.8150482]
[1723116584186,19.29,154.6,154.52,7.5525482]
[1723116584489,64.29,154.6,154.54,19.29]
[1723116584884,6.4666,154.61,154.58,19.29]
[1723116585083,6.4666,154.61,154.59,19.29]
[1723116585397,6.0863,154.65,154.6,19.29]
[1723116585896,6.0863,154.65,154.61,19.29]
[1723116587098,6.0863,154.65,154.6,19.29]
[1723116588403,6.0863,154.65,154.61,19.29]
[1723116588695,6.0863,154.65,154.62,19.29]
[1723116589199,15.0852,154.66,154.63,19.29]
[1723116589582,6.2807,154.69,154.63,19.29]
[1723116589779,25.5707,154.69,154.63,19.29]
[1723116590085,6.2807,154.69,154.64,19.29]
[1723116590480,25.5707,154.69,154.63,19.29]
[1723116590689,25.5707,154.69,154.56,6.2276]
[1723116590875,25.5707,154.69,154.63,19.29]
[1723116591196,25.5707,154.69,154.57,21.46342173]
[1723116591197,25.5707,154.69,154.64,19.29]
[1723116591402,45.0,154.68,154.64,19.29]
[1723116592894,45.0,154.68,154.63,19.29]
[1723116599098,0.17,154.67,154.62,19.29]
[1723116599597,0.34,154.67,154.62,19.29]
[1723116599800,0.17,154.67,154.62,19.29]
[1723116600377,0.17,154.67,154.56,83.3876]
[1723116600594,19.63,154.67,154.61,19.29]
[1723116600797,45.0,154.66,154.61,19.29]
[1723116600994,19.29,154.68,154.62,19.29]
[1723116601190,45.34,154.67,154.62,19.29]
[1723116602287,64.63,154.67,154.61,19.29]
[1723116602488,45.17,154.67,154.63,19.29]
[1723116602683,0.17,154.67,154.63,19.29]
[1723116603605,0.17,154.67,154.62,19.29]
[1723116603980,0.17,154.67,154.56,83.3876]
[1723116603981,0.17,154.67,154.63,19.29]
[1723116604902,0.17,154.67,154.62,19.29]
[1723116605791,0.17,154.67,154.63,19.29]
[1723116606120,45.0,154.68,154.63,19.29]
[1723116606500,64.29,154.68,154.62,19.29]
[1723116606901,16.6538,154.64,154.55,11.8822659]
[1723116607195,16.6538,154.64,154.59,19.29]
[1723116607390,16.6538,154.64,154.56,20.0]
[1723116607391,45.0,154.63,154.56,20.0]
[1723116607625,64.29,154.63,154.57,19.29]
[1723116607791,19.29,154.61,154.52,7.5525482]
[1723116607994,34.4371,154.57,154.51,19.29]
[1723116608397,34.4371,154.57,154.47,7.8803309]
[1723116608398,25.5598,154.55,154.47,7.8803309]
[1723116608597,25.5598,154.55,154.49,19.29]
[1723116608810,45.0,154.54,154.49,19.29]
[1723116608989,19.46,154.53,154.47,19.29]
[1723116609194,0.17,154.53,154.48,19.29]
[1723116609397,64.29,154.54,154.48,19.29]
[1723116609795,64.29,154.54,154.43,7.7775054]
[1723116610095,64.29,154.54,154.48,19.29]
[1723116610529,6.2211,154.48,154.43,6.48291415]
[1723116610699,6.2211,154.48,154.41,9.3286537]
[1723116610700,19.29,154.47,154.41,9.3286537]
[1723116610901,34.3697,154.46,154.41,9.3286537]
[1723116611131,34.3697,154.46,154.4,19.29]
[1723116611324,45.0,154.45,154.4,19.29]
[1723116611631,19.29,154.44,154.38,29.44819517]
[1723116611839,45.0,154.45,154.38,29.44819517]
[1723116611840,0.17,154.43,154.38,10.15819517]
[1723116612142,0.17,154.43,154.36,19.29]
[1723116612143,19.29,154.42,154.36,19.29]
[1723116612308,45.0,154.41,154.35,19.29]
[1723116612622,64.29,154.41,154.35,19.29]
[1723116612834,6.056,154.4,154.35,19.29]
[1723116613204,0.17,154.44,154.39,19.29]
[1723116613205,6.056,154.44,154.39,19.29]
[1723116613552,6.056,154.44,154.4,19.29]
[1723116613702,6.056,154.44,154.37,28.22]
[1723116613898,6.056,154.44,154.38,1.29523398]
[1723116614128,6.1446,154.45,154.33,9.08565512]
[1723116614307,6.1446,154.45,154.38,28.22]
[1723116614507,6.1446,154.45,154.39,20.0]
[1723116614907,6.1446,154.45,154.4,29.51478048]
[1723116615437,15.0797,154.46,154.41,20.0]
[1723116615598,6.6549,154.49,154.41,20.0]
[1723116616004,6.6549,154.49,154.41,21.29497156]
[1723116616222,6.6549,154.49,154.41,20.0]
[1723116616421,6.6549,154.49,154.38,28.22]
[1723116616600,6.6549,154.49,154.4,28.22]
[1723116616802,6.6549,154.49,154.41,21.29497045]
[1723116617618,6.6549,154.49,154.42,28.22]
[1723116617819,6.6549,154.49,154.44,28.22]
[1723116618236,6.1064,154.53,154.45,1.2945534]
[1723116618435,6.1064,154.53,154.46,29.51457701]
[1723116618632,6.1064,154.53,154.46,28.22]
[1723116618838,6.1064,154.53,154.41,20.0]
[1723116618839,6.1064,154.53,154.48,28.22]
[1723116619029,16.4138,154.55,154.49,21.29435214]
[1723116619225,6.4208,154.58,154.5,28.22]
[1723116619537,6.4208,154.58,154.49,20.0]
[1723116619840,34.6408,154.58,154.44,28.22]
[1723116620012,34.6408,154.58,154.45,20.0]
[1723116620214,6.4703,154.56,154.45,20.0]
[1723116620412,6.4695,154.57,154.46,1.29458732]
[1723116620708,6.4695,154.57,154.46,28.22]
[1723116620923,45.34,154.56,154.47,20.0]
[1723116621310,45.0,154.55,154.47,20.0]
[1723116621505,0.34,154.56,154.47,20.0]
[1723116621706,0.34,154.56,154.48,28.22]
[1723116621707,0.17,154.56,154.48,28.22]
[1723116621905,6.4208,154.58,154.5,28.22]
[1723116622129,6.4208,154.58,154.52,28.22]
[1723116622323,6.4208,154.58,154.53,1.2939263]
[1723116622512,6.4208,154.58,154.52,28.22]
[1723116622715,6.4208,154.58,154.5,28.22]
[1723116622923,6.4208,154.58,154.51,20.0]
[1723116624327,45.0,154.57,154.51,20.0]
[1723116625621,6.4208,154.58,154.52,29.5136716]
[1723116625819,15.1102,154.6,154.54,28.22]
[1723116626129,6.4684,154.62,154.56,28.22]
[1723116626428,6.4684,154.62,154.57,1.29325312]
[1723116626628,6.4684,154.62,154.58,1.29316945]
[1723116626818,6.4684,154.62,154.56,28.22]
[1723116627014,15.2979,154.65,154.58,28.22]
[1723116627212,15.2979,154.65,154.56,28.22]
[1723116628433,0.17,154.64,154.52,0.17]
[1723116628631,28.56,154.64,154.52,28.22]
[1723116628811,28.56,154.64,154.53,20.0]
[1723116629009,6.467,154.63,154.53,20.0]
[1723116629212,0.34,154.62,154.53,20.0]
[1723116629613,0.17,154.62,154.53,20.0]
[1723116629827,45.0,154.63,154.53,20.0]
[1723116632224,51.4672,154.63,154.53,20.0]
[1723116632423,0.34,154.62,154.53,20.0]
[1723116632627,0.34,154.62,154.52,28.22]
[1723116633142,6.8075,154.62,154.52,28.22]
[1723116633444,45.0,154.61,154.52,28.22]
[1723116633735,15.2979,154.65,154.57,28.22]
[1723116634523,15.2979,154.65,154.59,28.22]
[1723116634931,15.2979,154.65,154.57,28.22]
[1723116636417,15.2979,154.65,154.55,28.22]
[1723116636726,45.17,154.64,154.55,28.22]
[1723116636943,0.17,154.63,154.53,28.22]
[1723116637129,6.4679,154.61,154.5,28.22]
[1723116637318,6.3985,154.59,154.5,28.22]
[1723116638247,16.5675,154.58,154.5,28.22]
[1723116638744,45.0,154.57,154.5,28.22]
[1723116641345,45.0,154.57,154.46,1.29417796]
[1723116641346,45.0,154.57,154.48,28.22]
[1723116641543,45.0,154.57,154.49,20.0]
[1723116642147,45.0,154.57,154.5,28.22]
[1723116644141,45.0,154.57,154.51,1.29381928]
[1723116644542,16.5675,154.58,154.54,28.22]
[1723116644743,6.3985,154.59,154.56,28.22]
[1723116645041,16.2926,154.62,154.56,28.22]
[1723116646229,16.4971,154.66,154.6,28.22]
[1723116646847,16.4971,154.66,154.58,28.22]
[1723116647157,16.4971,154.66,154.56,28.22]
[1723116647455,6.6366,154.65,154.56,28.22]
[1723116647751,45.17,154.64,154.57,1.29373913]
[1723116647961,0.17,154.64,154.57,1.29373913]
[1723116648252,45.17,154.65,154.57,1.29373913]
[1723116648441,45.0,154.65,154.57,1.29373913]
[1723116648642,16.4971,154.66,154.56,28.22]
[1723116649239,45.0,154.65,154.56,28.22]
[1723116649458,0.34,154.64,154.56,28.22]
[1723116649852,45.0,154.65,154.56,28.22]
[1723116650051,51.4662,154.65,154.56,28.22]
[1723116650866,45.0,154.65,154.56,28.22]
[1723116654358,51.4662,154.65,154.56,28.22]
[1723116654541,0.34,154.64,154.56,28.22]
[1723116655346,0.17,154.64,154.56,28.22]
[1723116655566,45.0,154.65,154.56,28.22]
[1723116656244,16.4971,154.66,154.58,28.22]
[1723116656548,16.4971,154.66,154.59,1.29321236]
[1723116657051,22.963,154.66,154.56,34.69746139]
[1723116657456,16.4971,154.66,154.56,34.69746139]
[1723116657864,45.34,154.65,154.56,34.69746139]
[1723116658655,16.4971,154.66,154.58,28.22]
[1723116658853,16.4971,154.66,154.59,1.29352027]
[1723116659062,16.4971,154.66,154.58,28.22]
[1723116659582,16.4971,154.66,154.6,28.22]
[1723116660378,260.7,154.69,154.62,28.22]
[1723116660542,16.5609,154.7,154.62,28.22]
[1723116660949,16.5609,154.7,154.6,28.22]
[1723116660950,6.4645,154.69,154.6,28.22]
[1723116661155,6.4651,154.68,154.6,28.22]
[1723116661363,16.5609,154.7,154.58,44.1841]
[1723116661364,6.4653,154.67,154.58,44.1841]
[1723116661565,6.4649,154.68,154.58,44.1841]
[1723116661860,45.0,154.67,154.6,28.22]
[1723116662070,16.5609,154.7,154.6,28.22]
[1723116662270,16.5609,154.7,154.58,15.9641]
[1723116662271,0.17,154.69,154.62,28.22]
[1723116662477,16.5609,154.7,154.62,28.22]
[1723116662766,16.5609,154.7,154.64,28.22]
[1723116663344,6.5362,154.71,154.64,28.22]
[1723116663848,16.582,154.74,154.64,28.22]
[1723116664879,6.463,154.73,154.64,28.22]
[1723116665249,45.0,154.72,154.64,28.22]
[1723116665755,45.0,154.73,154.64,28.22]
[1723116665954,0.34,154.72,154.62,28.22]
[1723116666159,0.34,154.72,154.63,20.0]
[1723116666573,0.17,154.72,154.64,28.22]
[1723116666754,45.0,154.73,154.65,1.29265999]
[1723116667078,45.0,154.73,154.64,28.22]
[1723116667876,0.17,154.72,154.64,28.22]
[1723116668059,0.34,154.72,154.64,28.22]
[1723116668989,16.582,154.74,154.66,28.22]
[1723116669357,16.582,154.74,154.64,28.22]
[1723116669753,16.582,154.74,154.65,1.29206131]
[1723116670370,45.0,154.73,154.65,1.29206131]
[1723116671077,16.582,154.74,154.65,1.29206131]
[1723116671454,16.582,154.74,154.64,28.22]
[1723116671860,45.0,154.73,154.64,28.22]
[1723116672056,45.0,154.73,154.63,26.47452908]
[1723116672275,6.8036,154.72,154.63,26.47452908]
[1723116672479,45.0,154.71,154.63,26.47452908]
[1723116672772,0.34,154.72,154.63,26.47452908]
[1723116673391,0.17,154.72,154.64,1.29311314]
[1723116673591,45.0,154.73,154.63,54.69452908]
[1723116673754,0.34,154.72,154.63,54.69452908]
[1723116674292,0.17,154.72,154.63,54.69452908]
[1723116674872,6.6333,154.72,154.63,54.69452908]
[1723116675071,6.6333,154.72,154.63,26.47452908]
[1723116675072,45.0,154.71,154.63,26.47452908]
[1723116675563,45.34,154.72,154.63,26.47452908]
[1723116677596,45.34,154.72,154.63,6.47452908]
[1723116678684,51.8036,154.72,154.63,6.47452908]
[1723116678872,28.22,154.71,154.63,6.47452908]
[1723116679179,45.34,154.7,154.59,28.22]
[1723116679567,13.0553,154.69,154.57,40.88424232]
[1723116679765,6.4657,154.66,154.57,34.69704232]
[1723116679963,45.0,154.65,154.57,6.47704232]
[1723116680184,43.5407,154.67,154.58,1.29357289]
[1723116680185,15.3207,154.67,154.58,1.29357289]
[1723116680386,45.0,154.66,154.59,28.22]
[1723116680590,22.1844,154.72,154.63,28.22]
[1723116680769,28.6476,154.72,154.63,28.22]
[1723116681787,22.1844,154.72,154.63,28.22]
[1723116681992,0.17,154.71,154.63,28.22]
[1723116682170,45.34,154.71,154.63,28.22]
[1723116686092,45.34,154.71,154.61,28.22]
[1723116686468,51.8038,154.71,154.6,15.2549]
[1723116686698,51.8038,154.71,154.57,6.47704232]
[1723116686699,6.4664,154.65,154.57,6.47704232]
[1723116686869,45.34,154.64,154.57,6.47704232]
[1723116687073,22.5414,154.63,154.57,6.47704232]
[1723116687298,51.4675,154.62,154.51,50.6201]
[1723116687606,6.6379,154.61,154.51,28.22]
[1723116687803,45.17,154.6,154.51,28.22]
[1723116687980,0.17,154.59,154.51,28.22]
[1723116688169,0.17,154.59,154.49,28.22]
[1723116688624,45.17,154.6,154.48,6.48081585]
[1723116688625,42.5414,154.63,154.53,28.22]
[1723116688913,45.17,154.62,154.55,28.22]
[1723116689110,22.5414,154.63,154.55,28.22]
[1723116689496,22.7151,154.67,154.57,28.22]
[1723116689710,22.7151,154.67,154.59,28.22]
[1723116692598,0.17,154.66,154.59,28.22]
[1723116692798,45.17,154.66,154.59,28.22]
[1723116693018,0.17,154.65,154.59,28.22]
[1723116693192,0.17,154.65,154.57,28.22]
[1723116693522,0.17,154.65,154.55,50.9641]
[1723116694312,0.17,154.65,154.55,28.22]
[1723116694696,0.17,154.65,154.56,20.0]
[1723116695316,6.4666,154.64,154.55,28.22]
[1723116695503,45.34,154.63,154.55,28.22]
[1723116695703,51.807,154.63,154.53,28.22]
[1723116696713,45.34,154.63,154.53,28.22]
[1723116697317,45.34,154.63,154.54,20.0]
[1723116697819,51.807,154.63,154.54,20.0]
[1723116698206,45.34,154.63,154.53,28.22]
[1723116698521,15.2402,154.6,154.49,28.22]
[1723116698704,43.4602,154.6,154.49,28.22]
[1723116698909,43.4602,154.6,154.47,22.2123]
[1723116698910,65.34,154.59,154.47,28.22]
[1723116699298,45.34,154.59,154.47,28.22]
[1723116699507,45.34,154.59,154.49,28.22]
[1723116700321,45.34,154.59,154.51,28.22]
[1723116700524,45.0,154.59,154.52,1.29421841]
[1723116700821,15.2402,154.6,154.55,28.22]
[1723116701038,6.4726,154.61,154.55,28.22]
[1723116702131,6.4726,154.61,154.53,28.22]
[1723116702296,6.4726,154.61,154.54,20.0]
[1723116702498,6.4726,154.61,154.55,28.22]
[1723116703215,15.1639,154.64,154.57,28.22]
[1723116703416,15.1639,154.64,154.58,21.0117636]
[1723116704205,15.1639,154.64,154.58,20.0]
[1723116704610,15.1639,154.64,154.59,28.22]
[1723116705526,6.2159,154.65,154.59,28.22]
[1723116709123,6.2159,154.65,154.59,29.51243546]
[1723116709430,15.3029,154.68,154.59,29.51243546]
[1723116709431,15.3029,154.68,154.59,28.22]
[1723116709604,45.17,154.67,154.59,28.22]
[1723116711430,0.17,154.66,154.59,28.22]
[1723116711807,0.17,154.66,154.59,29.51355852]
[1723116712010,45.17,154.67,154.59,28.22]
[1723116712731,15.3029,154.68,154.61,28.22]
[1723116714409,6.6592,154.69,154.61,28.22]
[1723116714610,45.0,154.68,154.61,28.22]
[1723116716322,0.17,154.67,154.59,28.22]
[1723116716624,0.34,154.67,154.6,20.0]
[1723116719129,45.0,154.68,154.61,28.22]
[1723116720014,6.6592,154.69,154.61,28.22]
[1723116720222,16.2958,154.72,154.65,28.22]
[1723116721812,45.0,154.71,154.63,28.22]
[1723116722012,45.0,154.71,154.59,28.22]
[1723116722315,12.8353,154.67,154.59,28.22]
[1723116722624,45.0,154.66,154.57,28.22]
[1723116723731,0.34,154.65,154.57,28.22]
[1723116724029,0.34,154.65,154.54,26.90997716]
[1723116724030,6.37,154.67,154.59,28.22]
[1723116724228,6.37,154.67,154.61,28.22]
[1723116725512,6.37,154.67,154.59,28.22]
[1723116725513,0.17,154.66,154.59,28.22]
[1723116725722,45.17,154.66,154.59,28.22]
[1723116725933,6.37,154.67,154.59,28.22]
[1723116726617,45.0,154.66,154.59,28.22]
[1723116728538,6.37,154.67,154.6,1.29358732]
[1723116728728,6.37,154.67,154.61,29.51340121]
[1723116728928,6.37,154.67,154.61,28.22]
[1723116729127,6.37,154.67,154.59,28.22]
[1723116729322,45.0,154.66,154.6,20.0]
[1723116729829,6.37,154.67,154.59,28.22]
[1723116731015,45.0,154.66,154.59,28.22]
[1723116731215,6.37,154.67,154.6,1.29305438]
[1723116731411,6.37,154.67,154.61,1.29340822]
[1723116731645,6.37,154.67,154.59,28.22]
[1723116732524,6.37,154.67,154.61,28.22]
[1723116732942,6.37,154.67,154.59,28.22]
[1723116733151,45.0,154.66,154.59,28.22]
[1723116735023,45.0,154.66,154.54,16.4612]
[1723116735024,15.6327,154.65,154.54,16.4612]
[1723116735224,45.34,154.64,154.55,28.22]
[1723116735450,51.8069,154.64,154.53,28.22]
[1723116735617,45.34,154.64,154.53,28.22]
[1723116736434,45.34,154.64,154.55,28.22]
[1723116736633,15.6327,154.65,154.57,28.22]
[1723116736851,15.6327,154.65,154.59,28.22]
[1723116739150,6.37,154.67,154.6,1.29347155]
[1723116739361,6.69745944,154.72,154.6,1.29347155]
[1723116739362,6.3637,154.72,154.65,28.22]
[1723116739525,15.643,154.73,154.67,28.22]
[1723116740127,15.643,154.73,154.65,28.22]
[1723116740357,15.643,154.73,154.63,28.22]
[1723116740662,40.8725,154.72,154.61,28.22]
[1723116740828,45.34,154.71,154.61,28.22]
[1723116741454,45.34,154.71,154.61,29.5131897]
[1723116741928,45.34,154.71,154.61,28.22]
[1723116742545,51.8038,154.71,154.61,28.22]
[1723116743252,45.34,154.71,154.61,28.22]
[1723116744451,45.34,154.71,154.61,29.51324881]
[1723116744752,45.34,154.71,154.61,28.22]
[1723116745247,51.8037,154.71,154.61,28.22]
[1723116745436,6.4641,154.7,154.6,20.0]
[1723116745751,45.34,154.69,154.59,28.22]
[1723116746060,6.4655,154.67,154.56,43.5915]
[1723116746230,45.0,154.66,154.56,43.5915]
[1723116746826,0.17,154.65,154.56,28.22]
[1723116747133,0.34,154.65,154.56,28.22]
[1723116747460,45.0,154.66,154.58,28.22]
[1723116747635,45.0,154.66,154.59,1.29357035]
[1723116747829,6.2942,154.67,154.58,28.22]
[1723116748146,6.1242,154.67,154.58,28.22]
[1723116748535,6.1242,154.67,154.6,28.22]
[1723116748735,6.1242,154.67,154.62,28.22]
[1723116749039,15.542,154.68,154.63,1.29328489]
[1723116749244,15.542,154.68,154.62,28.22]
[1723116750947,15.542,154.68,154.6,28.22]
[1723116751933,15.542,154.68,154.62,28.22]
[1723116754373,15.542,154.68,154.64,28.22]
[1723116755437,15.542,154.68,154.62,28.22]
[1723116757340,15.542,154.68,154.6,28.22]
[1723116757546,6.0342,154.67,154.56,28.22]
[1723116757779,0.34,154.66,154.56,28.22]
[1723116758972,0.34,154.66,154.58,28.22]
[1723116759334,51.0342,154.67,154.58,28.22]
[1723116759974,51.0342,154.67,154.6,28.22]
[1723116760475,51.0342,154.67,154.61,1.2933929]
[1723116760647,6.0342,154.67,154.61,1.2933929]
[1723116760966,6.0342,154.67,154.6,28.22]
[1723116761857,6.0342,154.67,154.61,1.29335069]
[1723116762967,6.0342,154.67,154.6,28.22]
[1723116763281,6.0342,154.67,154.62,28.22]
[1723116766769,22.8536,154.75,154.66,28.22]
[1723116767644,22.8536,154.75,154.67,1.29287823]
[1723116768162,22.8536,154.75,154.66,28.22]
[1723116768470,22.8536,154.75,154.67,20.0]
[1723116768852,22.8536,154.75,154.68,1.2924549]
[1723116769157,22.8536,154.75,154.67,20.0]
[1723116769358,22.8536,154.75,154.68,28.22]
[1723116769563,22.8536,154.75,154.69,20.0]
[1723116774251,22.8536,154.75,154.67,20.0]
[1723116774252,45.34,154.74,154.67,20.0]